bitfinex-derivatives/quotes_BNBF0:USTF0_20250406
["timestamp","ask_amount","ask_price","bid_price","bid_amount"]
[1743906197382,0.29398596,592.22,591.35,1.26423726]
[1743906197582,0.29398596,592.22,591.36,0.29245632]
[1743906198083,0.29398596,592.22,591.34,0.29245632]
[1743906198280,0.29398596,592.22,591.35,0.29245632]
[1743906198479,0.29398596,592.22,591.34,0.29245632]
[1743906199083,0.472,592.23,591.33,1.26423726]
[1743906199284,0.472,592.23,591.34,0.29246794]
[1743906199484,0.29399465,592.21,591.34,0.29246794]
[1743906199878,0.29399465,592.21,591.25,0.29246794]
[1743906200879,0.29399465,592.21,591.24,0.29399465]
[1743906201088,0.29399465,592.21,591.25,0.29246642]
[1743906202084,0.472,592.23,591.25,0.29246642]
[1743906202382,0.29401328,592.2,591.24,0.29401328]
[1743906202587,0.29401328,592.2,591.25,0.29246642]
[1743906204180,0.29401328,592.2,591.19,0.29250343]
[1743906205080,0.472,592.23,591.19,0.29250343]
[1743906205285,0.80970663,592.23,591.19,0.29250343]
[1743906205587,0.29403564,592.19,591.19,0.29250343]
[1743906206986,0.29403564,592.19,591.18,0.33830643]
[1743906207179,0.29403564,592.19,591.19,0.2925038]
[1743906208087,0.80970663,592.23,591.19,0.2925038]
[1743906208287,0.80970663,592.23,591.2,0.29250539]
[1743906208492,0.29403564,592.18,591.19,0.29250539]
[1743906209990,0.29403564,592.18,591.2,0.2925056]
[1743906210290,0.29403564,592.18,591.21,0.2925056]
[1743906210490,0.29403564,592.18,591.19,0.2925056]
[1743906210684,0.29403564,592.18,591.22,0.2925056]
[1743906210887,0.29403564,592.18,591.23,0.2925056]
[1743906211084,0.80970663,592.23,591.19,0.2925056]
[1743906211284,0.80970663,592.23,591.24,0.2925056]
[1743906211591,0.29403564,592.17,591.18,0.33830643]
[1743906211789,0.29403564,592.17,591.19,0.29250564]
[1743906212089,0.29403564,592.17,591.18,0.33830643]
[1743906212284,0.29403564,592.17,591.19,0.29250565]
[1743906214086,0.33770663,592.23,591.19,0.29250565]
[1743906214392,0.29403564,592.16,591.19,0.29250565]
[1743906214690,0.33770663,592.23,591.19,0.29250565]
[1743906215391,0.2940344,592.22,591.19,0.29250565]
[1743906215785,0.632,592.21,591.19,0.29250565]
[1743906217492,0.29403812,592.2,591.19,1.55674291]
[1743906217691,0.29403812,592.2,591.2,0.29250565]
[1743906218887,0.29403812,592.2,591.19,1.26423726]
[1743906219088,0.29403812,592.2,591.2,0.29249624]
[1743906219692,0.29403812,592.2,591.2,1.5567335]
[1743906219892,0.29403812,592.2,591.21,0.29249624]
[1743906220591,0.29403812,592.2,591.2,1.26423726]
[1743906220791,0.29403812,592.2,591.21,0.29249624]
[1743906222492,0.29403812,592.2,591.19,0.29249624]
[1743906222991,0.29403812,592.2,591.18,1.60254369]
[1743906223189,0.632,592.21,591.19,0.29249434]
[1743906223393,0.29403812,592.19,591.19,0.29249434]
[1743906226195,0.632,592.21,591.19,0.29249434]
[1743906226702,0.29403812,592.2,591.19,0.29249434]
[1743906227598,0.29403812,592.2,591.18,1.60254369]
[1743906227802,0.29403812,592.2,591.19,0.29249479]
[1743906228298,0.29403812,592.2,591.19,1.55673205]
[1743906228507,0.29403812,592.2,591.2,0.29249479]
[1743906229103,0.632,592.21,591.2,0.29249479]
[1743906229503,0.29403688,592.2,591.2,0.29249479]
[1743906231609,0.29403688,592.2,591.21,1.26423726]
[1743906231801,0.29403688,592.2,591.22,0.29249479]
[1743906232107,0.33770663,592.23,591.22,0.29249479]
[1743906232408,0.29403191,592.19,591.22,0.29249479]
[1743906233006,0.29403191,592.19,591.21,1.26423726]
[1743906233306,0.29403191,592.19,591.22,0.29250216]
[1743906234613,0.29403191,592.19,591.27,1.26423726]
[1743906234810,0.29403191,592.19,591.28,0.29250216]
[1743906235010,0.29403191,592.19,591.27,1.26423726]
[1743906235205,0.428,592.22,591.29,0.29250279]
[1743906235403,0.2940257,592.18,591.3,0.29250279]
[1743906235609,0.2940257,592.18,591.28,0.29250279]
[1743906235809,0.2940257,592.18,591.29,0.29250279]
[1743906236109,0.2940257,592.18,591.3,0.29250279]
[1743906236310,0.2940257,592.18,591.28,0.29250279]
[1743906236511,0.2940257,592.18,591.29,0.29250279]
[1743906236706,0.2940257,592.18,591.18,0.33830643]
[1743906236707,0.2940257,592.18,591.28,0.29250279]
[1743906236908,0.2940257,592.18,591.22,1.26423726]
[1743906236909,0.2940257,592.18,591.23,0.29250279]
[1743906237109,0.2940257,592.18,591.24,0.29250279]
[1743906237310,0.2940257,592.18,591.23,0.29250279]
[1743906237510,0.2940257,592.18,591.24,0.29250279]
[1743906237809,0.2940257,592.18,591.25,0.29250279]
[1743906238009,0.2940257,592.18,591.23,0.29250279]
[1743906238211,0.428,592.22,591.23,0.29250279]
[1743906238406,0.29403191,592.17,591.23,0.29250279]
[1743906239012,0.635,592.16,591.23,0.29250279]
[1743906239213,0.635,592.16,591.24,1.26423726]
[1743906239407,0.635,592.16,591.25,0.29250279]
[1743906240213,0.635,592.16,591.24,1.26423726]
[1743906240408,0.635,592.16,591.25,0.29250067]
[1743906241413,0.29403688,592.15,591.26,1.26423726]
[1743906241608,0.29403688,592.15,591.27,0.29250067]
[1743906243115,0.29403688,592.15,591.26,1.26423726]
[1743906243315,0.29403688,592.15,591.27,0.29250105]
[1743906243615,0.29403688,592.15,591.27,1.55673831]
[1743906243810,0.29403688,592.15,591.27,1.26423726]
[1743906244014,0.29403688,592.15,591.28,0.29250278]
[1743906244209,0.635,592.16,591.28,0.29250278]
[1743906244414,0.29403315,592.14,591.28,0.29250278]
[1743906247119,0.635,592.16,591.28,0.29250278]
[1743906247415,0.29403315,592.13,591.28,0.29250278]
[1743906247621,0.29403315,592.13,591.33,1.26423726]
[1743906247915,0.29403315,592.13,591.34,0.29250278]
[1743906250123,0.635,592.16,591.34,0.29250278]
[1743906250423,0.2940257,592.12,591.34,0.29250278]
[1743906252528,0.2940257,592.12,591.34,1.55674004]
[1743906252826,0.2940257,592.12,591.35,0.29250278]
[1743906253123,0.635,592.16,591.35,0.29250278]
[1743906253422,0.29402446,592.11,591.35,0.29250278]
[1743906253622,0.29402446,592.11,591.34,1.26423726]
[1743906253923,0.29402446,592.11,591.35,0.29250251]
[1743906254827,0.29402446,592.11,591.24,0.29250251]
[1743906256128,0.635,592.16,591.24,0.29250251]
[1743906256527,0.29403812,592.1,591.24,0.29250251]
[1743906258829,0.683,592.09,591.24,0.29250251]
[1743906259430,0.29404682,592.08,591.24,0.29250251]
[1743906260630,0.29404682,592.08,591.24,1.55673977]
[1743906260828,0.29404682,592.08,591.25,0.29250251]
[1743906262131,0.683,592.09,591.25,0.29250251]
[1743906262327,0.683,592.09,591.26,0.29250242]
[1743906262530,0.29404558,592.07,591.25,0.29250242]
[1743906262730,0.29404558,592.07,591.26,0.29250242]
[1743906262930,0.29404558,592.07,591.27,0.29250242]
[1743906263128,0.29404558,592.07,591.25,1.55673968]
[1743906263431,0.29404558,592.07,591.26,0.29250242]
[1743906263932,0.29404558,592.07,591.25,1.26423726]
[1743906264133,0.29404558,592.07,591.26,0.29250274]
[1743906264936,0.29404558,592.07,591.34,1.26423726]
[1743906265136,0.683,592.09,591.35,0.29250274]
[1743906265432,0.29403315,592.06,591.35,0.29250274]
[1743906265740,0.29403315,592.06,591.34,1.26423726]
[1743906266036,0.29403315,592.06,591.35,0.29250247]
[1743906267238,0.29403315,592.06,591.35,1.55673973]
[1743906267537,0.29403315,592.06,591.36,0.29250244]
[1743906268135,0.683,592.09,591.36,0.29250244]
[1743906268438,0.29403191,592.05,591.36,0.29250244]
[1743906269135,0.29403191,592.05,591.37,0.29249984]
[1743906269336,0.29403191,592.05,591.36,0.29249984]
[1743906271139,0.683,592.09,591.36,0.29249984]
[1743906271435,0.29403191,592.04,591.36,0.29249984]
[1743906272539,0.29403191,592.04,591.35,1.26423726]
[1743906272740,0.29403191,592.04,591.36,0.29249953]
[1743906274134,0.683,592.09,591.36,0.29249953]
[1743906274339,0.683,592.09,591.37,0.29250234]
[1743906274540,0.683,592.09,591.36,0.29250234]
[1743906274738,0.29403191,592.08,591.36,0.29250234]
[1743906275643,0.29403191,592.08,591.35,1.26423726]
[1743906277142,0.683,592.09,591.35,1.26423726]
[1743906277437,0.29403688,592.07,591.35,1.26423726]
[1743906279244,0.29403688,592.07,591.18,0.33830643]
[1743906280243,0.683,592.09,591.18,0.33830643]
[1743906280444,0.29410149,592.06,591.18,0.33830643]
[1743906283153,0.683,592.09,591.18,0.33830643]
[1743906283452,0.29406421,592.05,591.18,0.33830643]
[1743906284253,0.572,592.04,591.18,0.33830643]
[1743906285456,0.572,592.04,591.19,0.29251466]
[1743906286455,0.29406297,592.03,591.19,0.29251466]
[1743906287753,0.29406297,592.03,591.18,1.60254369]
[1743906288858,0.673,592.02,591.18,1.60254369]
[1743906289460,0.29408906,592.01,591.18,0.33830643]
[1743906292157,0.673,592.02,591.18,0.33830643]
[1743906292661,0.29410646,592.0,591.18,0.33830643]
[1743906293958,0.29410646,592.0,591.04,0.29414499]
[1743906295264,0.673,592.02,590.69,1.26423726]
[1743906295464,0.29415245,591.99,591.01,0.29415245]
[1743906295765,0.29415245,591.99,590.7,0.33858134]
[1743906295965,0.29415245,591.99,590.71,0.29256146]
[1743906296169,0.29415245,591.99,590.72,0.33856988]
[1743906296359,0.29415245,591.99,590.73,0.29256146]
[1743906296562,0.29415245,591.99,590.74,0.33855841]
[1743906296762,0.29415245,591.99,590.75,0.29256146]
[1743906296962,0.29415245,591.99,590.76,0.33854695]
[1743906297260,0.29415245,591.99,590.77,0.29256146]
[1743906297463,0.29415245,591.99,590.78,0.33853549]
[1743906297666,0.29415245,591.99,590.79,0.29256146]
[1743906297966,0.29415245,591.99,590.8,0.33852403]
[1743906298169,0.673,592.02,590.81,0.29256146]
[1743906298465,0.673,592.02,590.82,0.33851257]
[1743906298672,0.673,592.02,590.83,0.29256146]
[1743906298863,0.673,592.02,590.84,0.33850111]
[1743906299060,0.673,592.02,590.85,0.29256146]
[1743906299264,0.673,592.02,590.86,0.33848965]
[1743906299468,0.29414002,592.01,590.87,0.29256065]
[1743906299661,0.29414002,592.01,590.87,0.63104458]
[1743906299866,0.29414002,592.01,590.88,0.29256065]
[1743906300068,0.29414002,592.01,590.87,0.33848393]
[1743906300362,0.29414002,592.01,590.88,0.29256124]
[1743906300967,0.29414002,592.01,590.87,0.33848393]
[1743906301167,0.673,592.02,590.88,0.29256368]
[1743906301467,0.29414624,592.0,590.88,0.29256368]
[1743906303869,0.29414624,592.0,590.89,0.29256368]
[1743906304063,0.29414624,592.0,591.0,1.26423726]
[1743906304264,0.572,592.04,591.01,0.29256368]
[1743906304471,0.29414748,591.99,591.01,0.29256368]
[1743906304769,0.29414748,591.99,591.02,0.29258828]
[1743906304969,0.29414748,591.99,591.01,0.29258828]
[1743906305171,0.29414748,591.99,591.02,0.29258828]
[1743906305472,0.29414748,591.99,591.03,0.29258828]
[1743906305766,0.29414748,591.99,591.01,0.29258828]
[1743906305971,0.29414748,591.99,591.02,0.29258828]
[1743906306170,0.29414748,591.99,591.01,0.29258828]
[1743906306368,0.29414748,591.99,591.08,1.26423726]
[1743906306573,0.29414748,591.99,591.09,0.29258828]
[1743906306873,0.513,591.98,591.09,0.29258828]
[1743906307473,0.2941251,591.97,591.09,0.29258828]
[1743906308771,0.2941251,591.97,591.08,1.26423726]
[1743906308975,0.2941251,591.97,591.09,0.29258904]
[1743906309176,0.2941251,591.97,591.07,0.29258904]
[1743906309376,0.2941251,591.97,591.1,0.29258904]
[1743906309674,0.2941251,591.97,591.11,0.29258904]
[1743906310075,0.2941251,591.97,591.12,0.29258904]
[1743906310276,0.513,591.98,591.07,0.29258904]
[1743906310476,0.29412883,591.96,591.13,0.29258904]
[1743906310677,0.29412883,591.96,591.14,0.29258904]
[1743906310878,0.29412883,591.96,591.07,0.29258904]
[1743906311080,0.29412883,591.96,591.08,0.29258904]
[1743906311279,0.29412883,591.96,591.07,0.29258904]
[1743906311478,0.29412883,591.96,591.08,0.29258904]
[1743906311677,0.29412883,591.96,591.07,0.29258904]
[1743906313180,0.513,591.98,591.07,0.29258904]
[1743906313575,0.29412883,591.95,591.07,0.29258904]
[1743906315286,0.29412883,591.95,591.05,0.29258904]
[1743906315485,0.29412883,591.95,591.06,0.29258904]
[1743906315685,0.29412883,591.95,591.07,0.29258904]
[1743906315888,0.29412883,591.95,591.08,0.29258904]
[1743906316090,0.29412883,591.95,591.05,0.29258904]
[1743906316286,0.513,591.98,591.06,0.29258904]
[1743906316484,0.29413132,591.94,591.05,0.29258904]
[1743906316686,0.29413132,591.94,591.06,0.29258904]
[1743906316884,0.29413132,591.94,591.07,0.29258904]
[1743906317085,0.29413132,591.94,591.04,1.26423726]
[1743906317388,0.29413132,591.94,591.05,0.29258934]
[1743906318985,0.29413132,591.94,591.05,1.5568266]
[1743906319191,0.513,591.98,591.06,0.29258934]
[1743906319386,0.513,591.98,591.05,1.26423726]
[1743906319586,0.29413008,591.93,591.07,0.29258658]
[1743906319789,0.29413008,591.93,591.08,0.29258658]
[1743906320088,0.29413008,591.93,591.09,0.29258658]
[1743906320287,0.29413008,591.93,591.06,0.29258658]
[1743906320486,0.29413008,591.93,591.07,0.29258658]
[1743906320691,0.29413008,591.93,591.06,0.29258658]
[1743906320886,0.29413008,591.93,591.07,0.29258658]
[1743906321086,0.29413008,591.93,591.08,0.29258658]
[1743906321288,0.29413008,591.93,591.07,0.29258658]
[1743906321488,0.29413008,591.93,591.08,0.29258658]
[1743906321690,0.29413008,591.93,591.07,0.29258658]
[1743906321989,0.29413008,591.93,591.08,0.29258658]
[1743906322190,0.572,592.04,591.07,0.29258658]
[1743906322389,0.33782071,592.03,591.08,0.29258658]
[1743906322591,0.29413878,591.92,591.09,0.29258658]
[1743906322789,0.33782071,592.03,591.07,0.29258658]
[1743906322990,0.33782071,592.03,591.08,0.29258658]
[1743906323188,0.33782071,592.03,591.07,0.29258658]
[1743906323487,0.29413878,592.02,591.07,0.29258658]
[1743906323702,0.33783213,592.01,591.08,0.29262277]
[1743906323990,0.33783213,592.01,591.09,0.29262277]
[1743906324193,0.33783213,592.01,591.07,0.29262277]
[1743906324792,0.514,592.0,591.07,0.29262277]
[1743906324986,0.33784354,591.99,591.08,0.29262277]
[1743906325188,0.33784354,591.99,590.9,0.29262277]
[1743906325392,0.33784354,591.99,590.91,0.29262277]
[1743906325690,0.33784354,591.99,590.9,0.29262277]
[1743906325885,0.33784354,591.99,590.91,0.29262277]
[1743906326088,0.33784354,591.99,590.9,0.29262277]
[1743906326288,0.33784354,591.99,590.91,0.29262277]
[1743906326490,0.33784354,591.99,590.9,0.29262277]
[1743906326789,0.33784354,591.99,590.91,0.29262277]
[1743906326986,0.33784354,591.99,590.9,0.29262277]
[1743906327190,0.33784354,591.99,590.91,0.29262277]
[1743906327389,0.33784354,591.99,590.92,0.29262277]
[1743906327593,0.33784354,591.99,590.88,0.29262277]
[1743906327788,0.33784354,591.99,590.89,0.29262277]
[1743906327989,0.33784354,591.99,590.88,0.29262277]
[1743906328494,0.29419721,591.98,590.87,0.33848393]
[1743906328694,0.33785495,591.97,590.88,0.29268552]
[1743906329795,0.429,591.96,590.88,0.29268552]
[1743906330090,0.33786637,591.95,590.88,0.29268552]
[1743906330291,0.33786637,591.95,590.87,0.33848393]
[1743906330493,0.33786637,591.95,590.88,0.29268754]
[1743906331491,0.29420219,591.94,590.88,0.29268754]
[1743906331691,0.33787778,591.93,590.88,0.29268754]
[1743906331892,0.33787778,591.93,590.87,0.33848393]
[1743906332089,0.33787778,591.93,590.88,0.29268529]
[1743906333396,0.33787778,591.93,590.87,0.33848393]
[1743906334597,0.29424199,591.92,590.87,0.33848393]
[1743906334796,0.3378892,591.91,590.87,0.33848393]
[1743906336399,0.3378892,591.91,590.88,0.29268561]
[1743906337593,0.29420716,591.9,590.88,0.29268561]
[1743906337791,0.33790062,591.89,590.88,0.29268561]
[1743906337996,0.33790062,591.89,590.87,0.33848393]
[1743906338197,0.33790062,591.89,590.88,0.29268268]
[1743906339598,0.33790062,591.89,590.87,0.33848393]
[1743906339794,0.624,591.88,590.88,0.29268282]
[1743906339997,0.33791204,591.87,590.88,0.29268282]
[1743906340496,0.29421214,591.86,590.88,0.29268282]
[1743906340694,0.63212989,591.86,590.88,0.29268282]
[1743906343005,0.63212989,591.86,590.87,0.33848393]
[1743906343204,0.33791775,591.86,590.88,0.29268343]
[1743906343506,0.29422706,591.85,590.88,0.29268343]
[1743906344599,0.29422706,591.85,590.87,0.33848393]
[1743906344803,0.29422706,591.85,590.88,0.29268408]
[1743906346208,0.33791775,591.86,590.88,0.29268408]
[1743906346504,0.29421462,591.84,590.88,0.29268408]
[1743906349209,0.33791775,591.86,590.88,0.29268408]
[1743906349510,0.29420468,591.83,590.88,0.29268408]
[1743906352209,0.33791775,591.86,590.88,0.29268408]
[1743906352614,0.29420468,591.82,590.88,0.29268408]
[1743906353009,0.29420468,591.82,590.87,0.33848393]
[1743906353214,0.29420468,591.82,590.88,0.2926605]
[1743906354614,0.29420468,591.82,590.87,0.33848393]
[1743906354816,0.29420468,591.82,590.88,0.29266182]
[1743906355208,0.33791775,591.86,590.88,0.29266182]
[1743906355511,0.29420468,591.81,590.88,0.29266182]
[1743906356318,0.29420468,591.81,590.87,0.33848393]
[1743906356513,0.29420468,591.81,590.88,0.29266307]
[1743906356813,0.29420468,591.81,590.88,1.55690033]
[1743906357012,0.29420468,591.81,590.89,0.29266307]
[1743906358217,0.33791775,591.86,590.89,0.29266307]
[1743906358413,0.29420343,591.8,590.89,0.29266307]
[1743906359319,0.29420343,591.8,590.9,1.26423726]
[1743906359519,0.29420343,591.8,590.91,0.29266307]
[1743906361221,0.33791775,591.86,590.91,0.29266307]
[1743906361616,0.29419846,591.85,590.91,0.29266307]
[1743906362120,0.29419846,591.85,590.96,1.26423726]
[1743906362318,0.29419846,591.85,590.97,0.29266307]
[1743906363723,0.29419846,591.85,591.01,1.26423726]
[1743906363916,0.29419846,591.85,591.02,0.29266307]
[1743906364222,0.33791775,591.86,591.02,0.29266307]
[1743906364523,0.29418727,591.84,591.02,0.29266307]
[1743906366323,0.29418727,591.84,591.04,1.26423726]
[1743906366619,0.29418727,591.84,591.05,0.29266307]
[1743906367223,0.33791775,591.86,591.05,0.29266307]
[1743906367518,0.29418354,591.83,591.05,0.29266307]
[1743906368718,0.29418354,591.83,591.03,0.29266307]
[1743906370223,0.61,591.83,591.03,0.29266307]
[1743906370424,0.29418602,591.82,591.03,0.29266307]
[1743906370928,0.29418602,591.82,591.02,1.26423726]
[1743906371227,0.29418602,591.82,591.03,0.2926676]
[1743906371627,0.29418602,591.82,591.02,1.26423726]
[1743906371926,0.29418602,591.82,591.03,0.29266773]
[1743906373228,0.61,591.83,591.03,0.29266773]
[1743906373527,0.29418975,591.81,591.03,0.29266773]
[1743906376125,0.29418975,591.81,590.91,1.26423726]
[1743906376126,0.61,591.83,590.92,0.29266773]
[1743906376429,0.61,591.83,590.93,0.29266773]
[1743906376630,0.29420343,591.82,590.92,0.29266773]
[1743906378225,0.29420343,591.82,590.93,0.29266773]
[1743906378424,0.29420343,591.82,590.94,0.29266773]
[1743906378631,0.29420343,591.82,590.91,0.29266773]
[1743906378824,0.29420343,591.82,590.92,0.29266773]
[1743906379027,0.29420343,591.82,590.91,0.29266773]
[1743906379227,0.61,591.83,590.92,0.29266773]
[1743906379528,0.29420468,591.81,590.93,0.29266773]
[1743906379725,0.29420468,591.81,590.91,0.29266773]
[1743906380828,0.29420468,591.81,590.88,0.29266773]
[1743906381130,0.29420468,591.81,590.89,0.29266773]
[1743906381330,0.29420468,591.81,590.88,0.29266773]
[1743906381526,0.29420468,591.81,590.9,0.29266773]
[1743906381733,0.29420468,591.81,590.91,0.29266773]
[1743906382031,0.29420468,591.81,590.92,0.29266773]
[1743906382232,0.61,591.83,590.92,0.29266773]
[1743906382427,0.61,591.83,590.93,0.29266773]
[1743906382633,0.29420841,591.8,590.94,0.29266773]
[1743906382928,0.29420841,591.8,590.95,0.29266773]
[1743906383132,0.29420841,591.8,590.88,0.29266773]
[1743906383332,0.29420841,591.8,590.89,0.29266773]
[1743906383527,0.29420841,591.8,590.88,0.29266773]
[1743906383731,0.29420841,591.8,590.89,0.29266773]
[1743906383933,0.537,591.79,590.88,0.29266773]
[1743906384140,0.537,591.79,590.89,0.29266773]
[1743906384331,0.537,591.79,590.88,0.29266773]
[1743906384533,0.537,591.79,590.89,0.29266773]
[1743906384728,0.537,591.79,590.88,0.29266773]
[1743906385029,0.537,591.79,590.89,0.29266773]
[1743906385233,0.537,591.79,590.88,0.29266773]
[1743906385533,0.29421214,591.78,590.88,0.29266773]
[1743906386434,0.29421214,591.78,590.9,1.26423726]
[1743906386635,0.29421214,591.78,590.91,0.29266773]
[1743906388537,0.29421214,591.78,590.92,0.29266773]
[1743906388737,0.29421214,591.78,590.88,0.29266773]
[1743906390642,0.29421214,591.78,590.8,1.26423726]
[1743906390940,0.29421214,591.78,590.81,1.55694895]
[1743906390941,0.63217557,591.78,590.81,1.55694895]
[1743906391141,0.33796343,591.78,590.81,1.26423726]
[1743906391340,0.33796343,591.78,590.82,0.29271169]
[1743906391635,0.29425194,591.77,590.82,0.29271169]
[1743906391841,0.29425194,591.77,590.81,1.26423726]
[1743906392040,0.29425194,591.77,590.83,0.29271243]
[1743906392235,0.29425194,591.77,590.84,0.29271243]
[1743906392441,0.33797485,591.76,590.82,0.29271243]
[1743906392938,0.33797485,591.76,590.67,0.29271243]
[1743906393537,0.32570232,591.76,590.67,0.29271243]
[1743906394335,0.32570232,591.76,590.62,0.29271243]
[1743906394540,0.29428553,591.75,590.63,0.58699796]
[1743906394837,0.29428553,591.75,590.64,0.29271243]
[1743906396744,0.63226609,591.75,590.64,0.29271243]
[1743906397242,0.33798056,591.75,590.64,0.29271243]
[1743906397443,0.33798056,591.75,590.58,0.29271243]
[1743906397638,0.294293,591.74,590.63,0.294293]
[1743906398141,0.294293,591.74,590.64,0.29214492]
[1743906400346,0.33798056,591.75,590.64,0.29214492]
[1743906400542,0.29429175,591.73,590.63,0.29429175]
[1743906400740,0.29429175,591.73,590.64,0.29214492]
[1743906403152,0.33798056,591.75,590.64,0.29214492]
[1743906403346,0.33798056,591.75,590.6,0.29214492]
[1743906403547,0.73729051,591.72,590.63,0.29429051]
[1743906403752,0.73729051,591.72,590.64,0.29214492]
[1743906404153,0.73729051,591.72,590.68,1.26423726]
[1743906404353,0.73729051,591.72,590.69,0.29214492]
[1743906406257,0.443,591.72,590.69,0.29214492]
[1743906406457,0.443,591.72,590.77,1.26423726]
[1743906406660,0.29428304,591.71,590.78,0.29214492]
[1743906407960,0.29428304,591.71,590.77,1.26423726]
[1743906408159,0.29428304,591.71,590.79,0.29214436]
[1743906408359,0.29428304,591.71,590.8,0.29214436]
[1743906408558,0.29428304,591.71,590.79,1.26423726]
[1743906408755,0.29428304,591.71,590.8,0.29214436]
[1743906409159,0.443,591.72,590.8,0.29214436]
[1743906409460,0.29427185,591.7,590.8,0.29214436]
[1743906409658,0.29427185,591.7,590.81,0.29214388]
[1743906409858,0.29427185,591.7,590.8,0.29214388]
[1743906410058,0.29427185,591.7,590.81,0.29214388]
[1743906410253,0.29427185,591.7,590.8,0.29214388]
[1743906411958,0.29427185,591.7,590.81,0.29214388]
[1743906412160,0.29427185,591.7,590.77,0.29214388]
[1743906412359,0.443,591.72,590.82,0.29214388]
[1743906412559,0.29427558,591.69,590.83,0.29214388]
[1743906412759,0.29427558,591.69,590.77,0.29214388]
[1743906412954,0.88827558,591.69,590.76,1.26423726]
[1743906413159,0.88827558,591.69,590.77,0.29214406]
[1743906413960,0.88827558,591.69,590.77,1.55638132]
[1743906414160,0.88827558,591.69,590.78,0.29214406]
[1743906415156,0.594,591.69,590.78,0.29214406]
[1743906415461,0.29427807,591.68,590.78,0.29214406]
[1743906417064,0.29427807,591.68,590.79,1.26423726]
[1743906417264,0.29427807,591.68,590.8,0.29214406]
[1743906418163,0.594,591.69,590.8,0.29214406]
[1743906418566,0.29427558,591.68,590.8,0.29214406]
[1743906420467,0.29427558,591.68,590.81,1.26423726]
[1743906420668,0.29427558,591.68,590.82,0.29214406]
[1743906421166,0.594,591.69,590.82,0.29214406]
[1743906421471,0.29427309,591.67,590.82,0.29214406]
[1743906421668,0.29427309,591.67,590.81,1.26423726]
[1743906421866,0.29427309,591.67,590.82,0.29214432]
[1743906422268,0.29427309,591.67,590.81,1.26423726]
[1743906422572,0.63229935,591.67,590.81,1.26423726]
[1743906422773,0.63229935,591.67,590.82,1.26423726]
[1743906423172,0.33803197,591.66,590.82,1.26423726]
[1743906424669,0.29429673,591.65,590.82,1.26423726]
[1743906424872,0.63233442,591.65,590.53,0.29429673]
[1743906425070,0.63233442,591.65,590.54,0.29219548]
[1743906427277,0.33803769,591.65,590.54,0.29219548]
[1743906427478,0.33803769,591.65,590.47,1.26423726]
[1743906427777,0.29434278,591.64,590.53,0.29434278]
[1743906427976,0.29434278,591.64,590.54,0.29218983]
[1743906430175,0.33803769,591.65,590.54,0.29218983]
[1743906430378,0.33803769,591.65,590.48,0.29218983]
[1743906430580,0.29434278,591.63,590.53,0.29434278]
[1743906430778,0.29434278,591.63,590.54,0.29219027]
[1743906431277,0.29434278,591.63,590.53,0.29434278]
[1743906431478,0.29434278,591.63,590.54,0.29218979]
[1743906432377,0.29434278,591.63,590.53,0.29434278]
[1743906432579,0.546,591.62,590.54,0.29218979]
[1743906433477,0.29434029,591.61,590.55,0.29218979]
[1743906433676,0.29434029,591.61,590.54,0.29218979]
[1743906433872,0.29434029,591.61,590.56,0.29218979]
[1743906434078,0.29434029,591.61,590.53,0.29434029]
[1743906434277,0.29434029,591.61,590.54,0.29218978]
[1743906436378,0.546,591.62,590.52,0.29218978]
[1743906436588,0.29433407,591.6,590.53,0.29433407]
[1743906436777,0.29433407,591.6,590.54,0.29218978]
[1743906437081,0.29433407,591.6,590.55,1.26423726]
[1743906437294,0.29433407,591.6,590.56,0.29218978]
[1743906437581,0.29433407,591.6,590.55,1.26423726]
[1743906437781,0.29433407,591.6,590.56,0.29217769]
[1743906439078,0.29433407,591.6,590.56,1.55641495]
[1743906439283,0.546,591.62,590.56,1.55641495]
[1743906439485,0.546,591.62,590.57,0.29217769]
[1743906440583,0.29430918,591.61,590.57,0.29217769]
[1743906441283,0.29430918,591.61,590.56,0.29217769]
[1743906441479,0.29430918,591.61,590.57,0.29217769]
[1743906441783,0.29430918,591.61,590.56,0.29217769]
[1743906441980,0.29430918,591.61,590.57,0.29217769]
[1743906442180,0.29430918,591.61,590.56,0.29217769]
[1743906442479,0.546,591.62,590.57,0.29217769]
[1743906442683,0.29431789,591.6,590.56,0.29431789]
[1743906442883,0.29431789,591.6,590.57,0.29216147]
[1743906444284,0.29431789,591.6,590.56,0.29431789]
[1743906444482,0.29431789,591.6,590.58,0.29216707]
[1743906444681,0.29431789,591.6,590.59,0.29216707]
[1743906444986,0.29431789,591.6,590.6,0.29216707]
[1743906445286,0.546,591.62,590.61,0.29216707]
[1743906445479,0.546,591.62,590.58,0.29431664]
[1743906445480,0.29431664,591.59,590.58,0.29431664]
[1743906445681,0.29431664,591.59,590.59,0.29216707]
[1743906448190,0.546,591.62,590.59,0.29216707]
[1743906448384,0.546,591.62,590.56,0.29216707]
[1743906448584,0.29431415,591.58,590.58,0.29431415]
[1743906448789,0.29431415,591.58,590.59,0.29216707]